[Event "2nd Namma Bengaluru Open-A 2025"]
[Site "Bengaluru"]
[Date "2025.04.13"]
[Round "5.12"]
[White "Grigoryan, Karen H."]
[Black "Madhvendra Pratap Sharma"]
[Result "*"]
[Annotator "TA"]
[ECO "C42"]
[WhiteElo "2556"]
[BlackElo "2234"]
[PlyCount "118"]
[EventDate "2025.04.10"]
[EventType "swiss"]
[EventCountry "IND"]
[SourceTitle "playchess.com"]
[Source "ChessBase"]
[SourceQuality "1"]
[TimeControl "5400+30"]

{[%evp 13,118,6,22,8,47,10,11,-6,13,8,3,9,41,53,44,38,47,49,48,46,46,27,80,75,75,69,77,74,72,72,72,68,69,72,71,71,75,71,83,70,70,68,68,71,95,95,95,95,95,95,104,95,95,95,95,93,95,94,97,84,81,83,88,72,75,77,102,90,89,91,90,91,95,95,97,100,95,95,93,83,83,83,83,83,83,83,91,0,83,83,91,83,91,76,91,83,91,83,100,83,99,10,10,10,10,10,10]} 1. e4 {[%emt 0:00:04]} e5 {[%emt 0:02:10]} 2. Nf3 {[%emt 0:00:04]} Nf6 {[%emt 0:00:37]} 3. Nxe5 {[%emt 0:05:23]} d6 {[%emt 0:00:06]} 4. Nf3 {[%emt 0:00:04]} Nxe4 {[%emt 0:00:04]} 5. Nc3 {[%emt 0:05:27]} Nxc3 {[%emt 0:00:09]} 6. dxc3 {[%emt 0:00:04]} Be7 {[%emt 0:00:11][%cal Bf8e7,Be7f6,Bf6e5][%mdl 32]} 7. Be3 {[%emt 0:00:04]} Nd7 {[%emt 0:00:11]} 8. Qd2 {[%emt 0:01:20] C42: Petroff Defence: 3 Nxe5 and unusual White 3rd moves.} Ne5 {[%emt 0:00:15]} 9. Be2 {[%emt 0:00:55]} O-O {[%emt 0:03:19]} 10. O-O {[%emt 0:02:31]} Be6 {[%emt 0:04:38]} 11. b3 {[%emt 0:00:13]} Bf6 $146 {[%emt 0:17:49]} (11... Nxf3+ 12. Bxf3 d5 13. Rfe1 c6 14. a4 Re8 15. Bd4 Bg5 16. Be3 h6 17. h3 Bf5 {½-½ Anton Guijarro,D (2639)-Li,C (2751) Gibraltar Masters 14th 2016 (8)}) 12. Rad1 {[%emt 0:00:26]} d5 {[%emt 0:03:28]} 13. Nxe5 {[%emt 0:09:28]} Bxe5 {[%emt 0:00:10]} 14. f4 {[%emt 0:00:02]} Bf6 {[%emt 0:08:39]} 15. f5 {[%emt 0:03:28]} Bd7 {[%emt 0:05:12]} 16. Qxd5 {[%emt 0:02:08]} Qe7 {[%emt 0:07:10]} 17. Qc5 {[%emt 0:06:40]} Rfe8 {[%emt 0:04:41]} (17... Qe8 $11 18. Bf2 b6) 18. Qxe7 $16 {[%emt 0:09:17]} Rxe7 {[%emt 0:00:16]} 19. Bf3 {[%emt 0:00:02] Dodges Bc6} Rxe3 {[%emt 0:14:31]} 20. Rxd7 {[%emt 0:00:14]} Rxc3 {[%emt 0:02:29]} 21. Bxb7 {[%emt 0:00:11]} Rd8 {[%emt 0:04:21]} 22. Rxd8+ {[%emt 0:14:12]} Bxd8 {[%emt 0:00:02][%mdl 4096] Endgame KRB-KRB. White is a pawn up.} 23. Be4 {[%emt 0:00:20]} Be7 {[%emt 0:03:38]} 24. Bd3 {[%emt 0:00:56]} Bc5+ {[%emt 0:02:05]} 25. Kh1 {[%emt 0:00:09]} Kf8 {[%emt 0:02:09]} 26. Re1 {[%emt 0:01:30]} Bd6 {[%emt 0:02:41]} 27. Re4 {[%emt 0:17:34]} Rc5 {[%emt 0:00:24]} 28. Rh4 {[%emt 0:00:53]} h6 {[%emt 0:01:41] [#]} 29. f6 $1 {[%emt 0:04:04]} a5 {[%emt 0:05:04]} (29... h5 30. fxg7+) 30. g3 {[%emt 0:01:09]} Re5 {[%emt 0:00:58]} 31. Kg2 {[%emt 0:00:22]} Re6 {[%emt 0:00:48]} 32. Ra4 {[%emt 0:01:39]} Re5 {[%emt 0:00:24]} 33. fxg7+ {[%emt 0:02:45]} Kxg7 {[%emt 0:00:02]} 34. Kf3 {[%emt 0:00:33]} Bb4 {[%emt 0:00:49]} 35. a3 {[%emt 0:01:02]} Bd6 {[%emt 0:00:17]} 36. b4 {[%emt 0:00:36]} axb4 {[%emt 0:00:56]} 37. axb4 {[%emt 0:00:03]} Rh5 {[%emt 0:00:48]} 38. h4 {[%emt 0:02:25]} Rd5 {[%emt 0:00:15]} 39. b5 {[%emt 0:01:29]} Re5 {[%emt 0:03:43]} 40. Rg4+ {[%emt 0:02:44]} Kf8 {[%emt 0:00:25]} 41. Rd4 {[%emt 0:01:23][%cal Ob5b6]} Bc5 {[%emt 0:00:48]} 42. Rd7 {[%emt 0:01:18]} Bb6 {[%emt 0:01:00]} 43. Bc4 {[%emt 0:01:15]} Re7 {[%emt 0:00:40]} 44. Rd8+ {[%emt 0:00:21]} Kg7 {[%emt 0:00:20]} 45. Bd3 {[%emt 0:00:52]} Re6 {[%emt 0:01:27]} 46. Rd5 {[%emt 0:00:30]} c6 {[%emt 0:00:58]} 47. bxc6 {[%emt 0:00:23]} Rxc6 {[%emt 0:00:02]} 48. g4 {[%emt 0:02:50]} Rc8 {[%emt 0:00:37]} 49. Rd7 {[%emt 0:00:43]} Rc7 {[%emt 0:00:34]} 50. Rd5 {[%emt 0:00:30]} ({White should try} 50. Rxc7 $16 {And now Rb7 would win.} Bxc7 51. h5) 50... Bc5 {[%emt 0:00:28]} (50... Rc8 $1 $11) 51. h5 {[%emt 0:00:43]} Be7 {[%emt 0:00:31]} 52. c4 {[%emt 0:01:18]} Rc6 {[%emt 0:00:29]} 53. Rd7 {[%emt 0:00:17]} Kf8 {[%emt 0:00:41]} 54. Rb7 {[%emt 0:00:36]} Rc5 {[%emt 0:00:44]} 55. Ke4 {[%emt 0:00:42]} Bf6 {[%emt 0:00:19]} 56. Ke3 {[%emt 0:01:11]} Rc6 {[%emt 0:00:25]} 57. Be4 {[%emt 0:00:55] White is more active.} (57. Rb5 $16) 57... Rxc4 $11 {[%emt 0:00:24] [#] The position is equal.} 58. Rxf7+ $1 {[%emt 0:00:31]} Kxf7 {[%emt 0:00:05]} 59. Bd5+ {[%emt 0:00:02] Mistake:       	White=2     	Black=2      Inaccurate:     	White=1     	Black=2      OK:         	White=27    	Black=15     Best:        	White=3     	Black=2} Kg7 {[%emt 0:00:56] Weighted Error Value: White=0.10 (very precise) /Black=0.11 (very precise)} *

[Event "2nd Namma Bengaluru Open-A 2025"]
[Site "Bengaluru"]
[Date "2025.04.13"]
[Round "5.13"]
[White "Ayush Sharma"]
[Black "Varun, Vij"]
[Result "1/2-1/2"]
[Annotator "ChessBase"]
[ECO "B22"]
[WhiteElo "2485"]
[BlackElo "1978"]
[PlyCount "63"]
[EventDate "2025.04.10"]
[EventType "swiss"]
[EventCountry "IND"]
[SourceTitle "playchess.com"]
[Source "ChessBase"]
[SourceQuality "1"]
[TimeControl "5400+30"]

1. e4 {[%emt 0:00:30]} c5 {[%emt 0:00:30]} 2. Nf3 {[%emt 0:00:30]} g6 {[%emt 0:00:30]} 3. c3 {[%emt 0:00:30]} d5 {[%emt 0:00:30]} 4. exd5 {[%emt 0:00:30]} Qxd5 {[%emt 0:00:30]} 5. d4 {[%emt 0:00:30]} Bg7 {[%emt 0:00:30]} 6. Be3 {[%emt 0:00:30]} cxd4 {[%emt 0:00:30]} 7. cxd4 {[%emt 0:00:30]} Nf6 {[%emt 0:00:30]} 8. Nc3 {[%emt 0:00:30]} Qa5 {[%emt 0:00:30]} 9. Bc4 {[%emt 0:00:30]} O-O {[%emt 0:00:30]} 10. O-O {[%emt 0:00:30]} Bg4 {[%emt 0:00:30]} 11. h3 {[%emt 0:00:30]} Bxf3 {[%emt 0:00:30]} 12. Qxf3 {[%emt 0:00:30]} Nc6 {[%emt 0:00:30]} 13. Bb3 {[%emt 0:00:30]} Qh5 {[%emt 0:00:30]} 14. Qf4 {[%emt 0:00:30]} e6 {[%emt 0:00:30]} 15. Rac1 {[%emt 0:00:30]} Rfd8 {[%emt 0:00:30]} 16. a3 {[%emt 0:00:30]} Ne7 {[%emt 0:00:30]} 17. Ne4 {[%emt 0:00:30]} Nfd5 {[%emt 0:00:30]} 18. Qg5 {[%emt 0:00:30]} Qe2 {[%emt 0:00:30]} 19. Rc2 {[%emt 0:00:30]} Qb5 {[%emt 0:00:30]} 20. Bxd5 {[%emt 0:00:30]} Nxd5 {[%emt 0:00:30]} 21. Rfc1 {[%emt 0:00:30]} h6 {[%emt 0:00:30]} 22. Qh4 {[%emt 0:00:30]} Qd7 {[%emt 0:00:30]} 23. Bxh6 {[%emt 0:00:30]} Rdc8 {[%emt 0:00:30]} 24. Bxg7 {[%emt 0:00:30]} Kxg7 {[%emt 0:00:30]} 25. g4 {[%emt 0:00:30]} Rxc2 {[%emt 0:00:30]} 26. Rxc2 {[%emt 0:00:30]} Rc8 {[%emt 0:00:30]} 27. g5 {[%emt 0:00:30]} Rxc2 {[%emt 0:00:30]} 28. Qh6+ {[%emt 0:00:30]} Kg8 {[%emt 0:00:30]} 29. Nf6+ {[%emt 0:00:30]} Nxf6 {[%emt 0:00:30]} 30. gxf6 {[%emt 0:00:30]} Rc1+ {[%emt 0:00:30]} 31. Qxc1 {[%emt 0:00:30]} Qd8 {[%emt 0:00:30]} 32. Qc2 {[%emt 0:00:30]} 1/2-1/2

[Event "2nd Namma Bengaluru Open-A 2025"]
[Site "Bengaluru"]
[Date "2025.04.13"]
[Round "5.14"]
[White "Jani Kushal R"]
[Black "Neelash Saha"]
[Result "1/2-1/2"]
[Annotator "ChessBase"]
[ECO "B00"]
[WhiteElo "2248"]
[BlackElo "2460"]
[PlyCount "92"]
[EventDate "2025.04.10"]
[EventType "swiss"]
[EventCountry "IND"]
[SourceTitle "playchess.com"]
[Source "ChessBase"]
[SourceQuality "1"]
[TimeControl "5400+30"]

1. e4 {[%emt 0:00:30]} b6 {[%emt 0:00:30]} 2. d4 {[%emt 0:00:30]} Bb7 {[%emt 0:00:30]} 3. Bd3 {[%emt 0:00:30]} e6 {[%emt 0:00:30]} 4. Nf3 {[%emt 0:00:30]} d5 {[%emt 0:00:30]} 5. e5 {[%emt 0:00:30]} Ne7 {[%emt 0:00:30]} 6. c3 {[%emt 0:00:30]} c5 {[%emt 0:00:30]} 7. Be3 {[%emt 0:00:30]} Nec6 {[%emt 0:00:30]} 8. O-O {[%emt 0:00:30]} Ba6 {[%emt 0:00:30]} 9. Bxa6 {[%emt 0:00:30]} Nxa6 {[%emt 0:00:30]} 10. h4 {[%emt 0:00:30]} Qd7 {[%emt 0:00:30]} 11. Nbd2 {[%emt 0:00:30]} Be7 {[%emt 0:00:30]} 12. h5 {[%emt 0:00:30]} h6 {[%emt 0:00:30]} 13. a3 {[%emt 0:00:30]} c4 {[%emt 0:00:30]} 14. b3 {[%emt 0:00:30]} cxb3 {[%emt 0:00:30]} 15. Nxb3 {[%emt 0:00:30]} Nc7 {[%emt 0:00:30]} 16. Re1 {[%emt 0:00:30]} a5 {[%emt 0:00:30]} 17. a4 {[%emt 0:00:30]} O-O {[%emt 0:00:30]} 18. Qd2 {[%emt 0:00:30]} Rfb8 {[%emt 0:00:30]} 19. g4 {[%emt 0:00:30]} Qe8 {[%emt 0:00:30]} 20. g5 {[%emt 0:00:30]} hxg5 {[%emt 0:00:30]} 21. Bxg5 {[%emt 0:00:30]} Rb7 {[%emt 0:00:30]} 22. Qf4 {[%emt 0:00:30]} Qf8 {[%emt 0:00:30]} 23. h6 {[%emt 0:00:30]} Bxg5 {[%emt 0:00:30]} 24. Nxg5 {[%emt 0:00:30]} gxh6 {[%emt 0:00:30]} 25. Nh3 {[%emt 0:00:30]} Ne7 {[%emt 0:00:30]} 26. Kh2 {[%emt 0:00:30]} Ng6 {[%emt 0:00:30]} 27. Rg1 {[%emt 0:00:30]} Kh7 {[%emt 0:00:30]} 28. Qg4 {[%emt 0:00:30]} Qe7 {[%emt 0:00:30]} 29. f4 {[%emt 0:00:30]} Rg8 {[%emt 0:00:30]} 30. f5 {[%emt 0:00:30]} exf5 {[%emt 0:00:30]} 31. Qxf5 {[%emt 0:00:30]} Ne6 {[%emt 0:00:30]} 32. Raf1 {[%emt 0:00:30]} Rc7 {[%emt 0:00:30]} 33. Rg3 {[%emt 0:00:30]} Rg7 {[%emt 0:00:30]} 34. Nc1 {[%emt 0:00:30]} Rg8 {[%emt 0:00:30]} 35. Ne2 {[%emt 0:00:30]} Qd7 {[%emt 0:00:30]} 36. Qh5 {[%emt 0:00:30]} Qxa4 {[%emt 0:00:30]} 37. Rfg1 {[%emt 0:00:30]} Qc2 {[%emt 0:00:30]} 38. R1g2 {[%emt 0:00:30]} Qd1 {[%emt 0:00:30]} 39. Nf2 {[%emt 0:00:30]} Qd2 {[%emt 0:00:30]} 40. Ng4 {[%emt 0:00:30]} Kh8 {[%emt 0:00:30]} 41. Nf6 {[%emt 0:00:30]} a4 {[%emt 0:00:30]} 42. Nxd5 {[%emt 0:00:30]} Ra7 {[%emt 0:00:30]} 43. Qf5 {[%emt 0:00:30]} a3 {[%emt 0:00:30]} 44. Nef4 {[%emt 0:00:30]} Qxg2+ {[%emt 0:00:30]} 45. Rxg2 {[%emt 0:00:30]} Ngxf4 {[%emt 0:00:30]} 46. Rxg8+ {[%emt 0:00:30]} Kxg8 {[%emt 0:00:30]} 1/2-1/2

[Event "2nd Namma Bengaluru Open-A 2025"]
[Site "Bengaluru"]
[Date "2025.04.13"]
[Round "5.15"]
[White "Ram Aravind L N"]
[Black "Stany, G.A."]
[Result "1/2-1/2"]
[Annotator "ChessBase"]
[ECO "B53"]
[WhiteElo "2245"]
[BlackElo "2454"]
[PlyCount "71"]
[EventDate "2025.04.10"]
[EventType "swiss"]
[EventCountry "IND"]
[SourceTitle "playchess.com"]
[Source "ChessBase"]
[SourceQuality "1"]
[TimeControl "5400+30"]

1. e4 {[%emt 0:00:30]} c5 {[%emt 0:00:30]} 2. Nf3 {[%emt 0:00:30]} d6 {[%emt 0:00:30]} 3. d4 {[%emt 0:00:30]} cxd4 {[%emt 0:00:30]} 4. Qxd4 {[%emt 0:00:30]} Nc6 {[%emt 0:00:30]} 5. Bb5 {[%emt 0:00:30]} Bd7 {[%emt 0:00:30]} 6. Qd3 {[%emt 0:00:30]} Rc8 {[%emt 0:00:30]} 7. Nc3 {[%emt 0:00:30]} Nf6 {[%emt 0:00:30]} 8. Bg5 {[%emt 0:00:30]} Nb4 {[%emt 0:00:30]} 9. Bxd7+ {[%emt 0:00:30]} Nxd7 {[%emt 0:00:30]} 10. Qd2 {[%emt 0:00:30]} h6 {[%emt 0:00:30]} 11. Bf4 {[%emt 0:00:30]} Nb6 {[%emt 0:00:30]} 12. a3 {[%emt 0:00:30]} Nc6 {[%emt 0:00:30]} 13. Qe2 {[%emt 0:00:30]} g5 {[%emt 0:00:30]} 14. Be3 {[%emt 0:00:30]} Bg7 {[%emt 0:00:30]} 15. Qd3 {[%emt 0:00:30]} g4 {[%emt 0:00:30]} 16. Nd4 {[%emt 0:00:30]} Ne5 {[%emt 0:00:30]} 17. Qb5+ {[%emt 0:00:30]} Qd7 {[%emt 0:00:30]} 18. Nf5 {[%emt 0:00:30]} Nf3+ {[%emt 0:00:30]} 19. Kd1 {[%emt 0:00:30]} Bxc3 {[%emt 0:00:30]} 20. Qxd7+ {[%emt 0:00:30]} Kxd7 {[%emt 0:00:30]} 21. Bxb6 {[%emt 0:00:30]} axb6 {[%emt 0:00:30]} 22. gxf3 {[%emt 0:00:30]} Bxb2 {[%emt 0:00:30]} 23. Rb1 {[%emt 0:00:30]} Bxa3 {[%emt 0:00:30]} 24. Rxb6 {[%emt 0:00:30]} Rc7 {[%emt 0:00:30]} 25. Rb3 {[%emt 0:00:30]} Bc5 {[%emt 0:00:30]} 26. fxg4 {[%emt 0:00:30]} Bxf2 {[%emt 0:00:30]} 27. Rf1 {[%emt 0:00:30]} Ba7 {[%emt 0:00:30]} 28. Ra3 {[%emt 0:00:30]} b5 {[%emt 0:00:30]} 29. Rb3 {[%emt 0:00:30]} e6 {[%emt 0:00:30]} 30. Ng7 {[%emt 0:00:30]} Ke7 {[%emt 0:00:30]} 31. Rbf3 {[%emt 0:00:30]} Rf8 {[%emt 0:00:30]} 32. Rf6 {[%emt 0:00:30]} Rcc8 {[%emt 0:00:30]} 33. Rxh6 {[%emt 0:00:30]} Bd4 {[%emt 0:00:30]} 34. Nh5 {[%emt 0:00:30]} Rh8 {[%emt 0:00:30]} 35. Rxh8 {[%emt 0:00:30]} Rxh8 {[%emt 0:00:30]} 36. Rf3 {[%emt 0:00:30]} 1/2-1/2

[Event "2nd Namma Bengaluru Open-A 2025"]
[Site "Bengaluru"]
[Date "2025.04.13"]
[Round "5.16"]
[White "Nithin Babu"]
[Black "Sanikidze, Tornike"]
[Result "1-0"]
[Annotator "ChessBase"]
[ECO "B63"]
[WhiteElo "2242"]
[BlackElo "2448"]
[PlyCount "91"]
[EventDate "2025.04.10"]
[EventType "swiss"]
[EventCountry "IND"]
[SourceTitle "playchess.com"]
[Source "ChessBase"]
[SourceQuality "1"]
[TimeControl "5400+30"]

1. e4 {[%emt 0:00:30]} c5 {[%emt 0:00:30]} 2. Nf3 {[%emt 0:00:30]} d6 {[%emt 0:00:30]} 3. d4 {[%emt 0:00:30]} cxd4 {[%emt 0:00:30]} 4. Nxd4 {[%emt 0:00:30]} Nf6 {[%emt 0:00:30]} 5. Nc3 {[%emt 0:00:30]} Nc6 {[%emt 0:00:30]} 6. Bg5 {[%emt 0:00:30]} e6 {[%emt 0:00:30]} 7. Qd2 {[%emt 0:00:30]} Qb6 {[%emt 0:00:30]} 8. O-O-O {[%emt 0:00:30]} Qxd4 {[%emt 0:00:30]} 9. Qxd4 {[%emt 0:00:30]} Nxd4 {[%emt 0:00:30]} 10. Rxd4 {[%emt 0:00:30]} a6 {[%emt 0:00:30]} 11. Na4 {[%emt 0:00:30]} Nd7 {[%emt 0:00:30]} 12. c4 {[%emt 0:00:30]} b6 {[%emt 0:00:30]} 13. Be2 {[%emt 0:00:30]} Bb7 {[%emt 0:00:30]} 14. f3 {[%emt 0:00:30]} Bc6 {[%emt 0:00:30]} 15. Nc3 {[%emt 0:00:30]} h6 {[%emt 0:00:30]} 16. Be3 {[%emt 0:00:30]} Be7 {[%emt 0:00:30]} 17. h4 {[%emt 0:00:30]} O-O {[%emt 0:00:30]} 18. g4 {[%emt 0:00:30]} g5 {[%emt 0:00:30]} 19. hxg5 {[%emt 0:00:30]} hxg5 {[%emt 0:00:30]} 20. Rhd1 {[%emt 0:00:30]} Rfc8 {[%emt 0:00:30]} 21. Rxd6 {[%emt 0:00:30]} Bxd6 {[%emt 0:00:30]} 22. Rxd6 {[%emt 0:00:30]} f6 {[%emt 0:00:30]} 23. Rxe6 {[%emt 0:00:30]} Kf7 {[%emt 0:00:30]} 24. Rd6 {[%emt 0:00:30]} Ke7 {[%emt 0:00:30]} 25. Rd2 {[%emt 0:00:30]} Rh8 {[%emt 0:00:30]} 26. b4 {[%emt 0:00:30]} Rh3 {[%emt 0:00:30]} 27. Kb2 {[%emt 0:00:30]} Rb8 {[%emt 0:00:30]} 28. Bd4 {[%emt 0:00:30]} Ne5 {[%emt 0:00:30]} 29. c5 {[%emt 0:00:30]} bxc5 {[%emt 0:00:30]} 30. Bxc5+ {[%emt 0:00:30]} Kf7 {[%emt 0:00:30]} 31. Bxa6 {[%emt 0:00:30]} Rxf3 {[%emt 0:00:30]} 32. Be2 {[%emt 0:00:30]} Rh3 {[%emt 0:00:30]} 33. a4 {[%emt 0:00:30]} Ra8 {[%emt 0:00:30]} 34. b5 {[%emt 0:00:30]} Bd7 {[%emt 0:00:30]} 35. Bb4 {[%emt 0:00:30]} Bxg4 {[%emt 0:00:30]} 36. Bxg4 {[%emt 0:00:30]} Nxg4 {[%emt 0:00:30]} 37. a5 {[%emt 0:00:30]} Ne5 {[%emt 0:00:30]} 38. Kb3 {[%emt 0:00:30]} Kg6 {[%emt 0:00:30]} 39. b6 {[%emt 0:00:30]} Nc6 {[%emt 0:00:30]} 40. Ka4 {[%emt 0:00:30]} g4 {[%emt 0:00:30]} 41. Nd5 {[%emt 0:00:30]} Rh1 {[%emt 0:00:30]} 42. Kb5 {[%emt 0:00:30]} Nxb4 {[%emt 0:00:30]} 43. Kxb4 {[%emt 0:00:30]} Kg5 {[%emt 0:00:30]} 44. b7 {[%emt 0:00:30]} Rb8 {[%emt 0:00:30]} 45. a6 {[%emt 0:00:30]} g3 {[%emt 0:00:30]} 46. Rd3 {[%emt 0:00:30]} 1-0

[Event "2nd Namma Bengaluru Open-A 2025"]
[Site "Bengaluru"]
[Date "2025.04.13"]
[Round "5.17"]
[White "Mehta Naitik R"]
[Black "Kaustuv, Kundu"]
[Result "0-1"]
[Annotator "RC"]
[ECO "C83"]
[WhiteElo "2227"]
[BlackElo "2407"]
[PlyCount "50"]
[EventDate "2025.04.10"]
[EventType "swiss"]
[EventCountry "IND"]
[SourceTitle "playchess.com"]
[Source "ChessBase"]
[SourceQuality "1"]
[TimeControl "5400+30"]

1. e4 {[%emt 0:00:30]} e5 {[%emt 0:00:30]} 2. Nf3 {[%emt 0:00:30]} Nc6 {[%emt 0:00:30]} 3. Bb5 {[%emt 0:00:30]} a6 {[%emt 0:00:30]} 4. Ba4 {[%emt 0:00:30]} Nf6 {[%emt 0:00:30]} 5. O-O {[%emt 0:00:30]} Nxe4 {[%emt 0:00:30]} 6. d4 {[%emt 0:00:30]} b5 {[%emt 0:00:30]} 7. Bb3 {[%emt 0:00:30]} d5 {[%emt 0:00:30]} 8. dxe5 {[%emt 0:00:30]} Be6 {[%emt 0:00:30]} 9. c3 {[%emt 0:00:30]} Be7 {[%emt 0:00:30]} 10. Bf4 {[%emt 0:00:30]} O-O {[%emt 0:00:30]} 11. Nbd2 {[%emt 0:00:30]} Nc5 {[%emt 0:00:30]} 12. Bc2 {[%emt 0:00:30]} d4 {[%emt 0:00:30]} 13. cxd4 {[%emt 0:00:30]} Nxd4 {[%emt 0:00:30]} 14. Bb1 {[%emt 0:00:30]} Nxf3+ {[%emt 0:00:30]} 15. Qxf3 {[%emt 0:00:30]} Qd4 {[%emt 0:00:30]} 16. Qg3 {[%emt 0:00:30]} Rfd8 {[%emt 0:00:30]} 17. Nf3 {[%emt 0:00:30]} Qxb2 {[%emt 0:00:30]} 18. Nh4 {[%emt 0:00:30]} Kh8 {[%emt 0:00:30]} 19. Nf5 {[%emt 0:00:30]} Bf8 {[%emt 0:00:30]} 20. Nxg7 {[%emt 0:00:30]} Bxg7 {[%emt 0:00:30]} 21. Qh4 {[%emt 0:00:30]} Nd3 {[%emt 0:00:30]} 22. Bg5 {[%emt 0:00:30]} Rd4 {[%emt 0:00:30]} 23. Qh5 {[%emt 0:00:30]} Bg4 {[%emt 0:00:30]} 24. Qxf7 {[%emt 0:00:30]} Rd7 {[%emt 0:00:30]} 25. Be7 {[%emt 0:00:30]} Nxe5 {[%emt 0:00:30]} 0-1

[Event "2nd Namma Bengaluru Open-A 2025"]
[Site "Bengaluru"]
[Date "2025.04.13"]
[Round "5.18"]
[White "Mahitosh Dey"]
[Black "Audi Ameya"]
[Result "0-1"]
[Annotator "RC"]
[ECO "D02"]
[WhiteElo "2226"]
[BlackElo "2404"]
[PlyCount "76"]
[EventDate "2025.04.10"]
[EventType "swiss"]
[EventCountry "IND"]
[SourceTitle "playchess.com"]
[Source "ChessBase"]
[SourceQuality "1"]
[TimeControl "5400+30"]

1. Nf3 {[%emt 0:00:30]} d5 {[%emt 0:00:30]} 2. d4 {[%emt 0:00:30]} Nf6 {[%emt 0:00:30]} 3. c3 {[%emt 0:00:30]} e6 {[%emt 0:00:30]} 4. Bf4 {[%emt 0:00:30]} c5 {[%emt 0:00:30]} 5. e3 {[%emt 0:00:30]} Nc6 {[%emt 0:00:30]} 6. Nbd2 {[%emt 0:00:30]} cxd4 {[%emt 0:00:30]} 7. exd4 {[%emt 0:00:30]} Nh5 {[%emt 0:00:30]} 8. Be3 {[%emt 0:00:30]} Bd6 {[%emt 0:00:30]} 9. Ne5 {[%emt 0:00:30]} g6 {[%emt 0:00:30]} 10. Be2 {[%emt 0:00:30]} Ng7 {[%emt 0:00:30]} 11. f4 {[%emt 0:00:30]} Nf5 {[%emt 0:00:30]} 12. Bf2 {[%emt 0:00:30]} f6 {[%emt 0:00:30]} 13. Nd3 {[%emt 0:00:30]} h5 {[%emt 0:00:30]} 14. Nf3 {[%emt 0:00:30]} Qc7 {[%emt 0:00:30]} 15. Qd2 {[%emt 0:00:30]} Na5 {[%emt 0:00:30]} 16. b3 {[%emt 0:00:30]} Bd7 {[%emt 0:00:30]} 17. g3 {[%emt 0:00:30]} O-O-O {[%emt 0:00:30]} 18. Qb2 {[%emt 0:00:30]} h4 {[%emt 0:00:30]} 19. g4 {[%emt 0:00:30]} Ng3 {[%emt 0:00:30]} 20. hxg3 {[%emt 0:00:30]} hxg3 {[%emt 0:00:30]} 21. Rxh8 {[%emt 0:00:30]} gxf2+ {[%emt 0:00:30]} 22. Kxf2 {[%emt 0:00:30]} Rxh8 {[%emt 0:00:30]} 23. Qd2 {[%emt 0:00:30]} g5 {[%emt 0:00:30]} 24. fxg5 {[%emt 0:00:30]} e5 {[%emt 0:00:30]} 25. Nb4 {[%emt 0:00:30]} e4 {[%emt 0:00:30]} 26. Nxd5 {[%emt 0:00:30]} Bg3+ {[%emt 0:00:30]} 27. Kg2 {[%emt 0:00:30]} exf3+ {[%emt 0:00:30]} 28. Bxf3 {[%emt 0:00:30]} Rh2+ {[%emt 0:00:30]} 29. Kg1 {[%emt 0:00:30]} Rxd2 {[%emt 0:00:30]} 30. Nxc7 {[%emt 0:00:30]} Kxc7 {[%emt 0:00:30]} 31. gxf6 {[%emt 0:00:30]} Rf2 {[%emt 0:00:30]} 32. Rf1 {[%emt 0:00:30]} Rxf1+ {[%emt 0:00:30]} 33. Kxf1 {[%emt 0:00:30]} Be6 {[%emt 0:00:30]} 34. c4 {[%emt 0:00:30]} Bh4 {[%emt 0:00:30]} 35. d5 {[%emt 0:00:30]} Bf7 {[%emt 0:00:30]} 36. c5 {[%emt 0:00:30]} Bxf6 {[%emt 0:00:30]} 37. Ke2 {[%emt 0:00:30]} b6 {[%emt 0:00:30]} 38. c6 {[%emt 0:00:30]} Bg6 {[%emt 0:00:30]} 0-1

[Event "2nd Namma Bengaluru Open-A 2025"]
[Site "Bengaluru"]
[Date "2025.04.13"]
[Round "5.19"]
[White "Sri Sai Baswanth P"]
[Black "Nguyen, Quoc Hy"]
[Result "0-1"]
[Annotator "ChessBase"]
[ECO "A37"]
[WhiteElo "2213"]
[BlackElo "2404"]
[PlyCount "88"]
[EventDate "2025.04.10"]
[EventType "swiss"]
[EventCountry "IND"]
[SourceTitle "playchess.com"]
[Source "ChessBase"]
[SourceQuality "1"]
[TimeControl "5400+30"]

1. c4 {[%emt 0:00:30]} c5 {[%emt 0:00:30]} 2. g3 {[%emt 0:00:30]} g6 {[%emt 0:00:30]} 3. Bg2 {[%emt 0:00:30]} Bg7 {[%emt 0:00:30]} 4. Nc3 {[%emt 0:00:30]} Nc6 {[%emt 0:00:30]} 5. Nf3 {[%emt 0:00:30]} d6 {[%emt 0:00:30]} 6. O-O {[%emt 0:00:30]} Rb8 {[%emt 0:00:30]} 7. e3 {[%emt 0:00:30]} Nf6 {[%emt 0:00:30]} 8. b3 {[%emt 0:00:30]} Ne4 {[%emt 0:00:30]} 9. Bb2 {[%emt 0:00:30]} Nxc3 {[%emt 0:00:30]} 10. Bxc3 {[%emt 0:00:30]} Bxc3 {[%emt 0:00:30]} 11. dxc3 {[%emt 0:00:30]} O-O {[%emt 0:00:30]} 12. Qd2 {[%emt 0:00:30]} a6 {[%emt 0:00:30]} 13. Rfd1 {[%emt 0:00:30]} Bf5 {[%emt 0:00:30]} 14. h3 {[%emt 0:00:30]} Qc8 {[%emt 0:00:30]} 15. Kh2 {[%emt 0:00:30]} Be4 {[%emt 0:00:30]} 16. Ne1 {[%emt 0:00:30]} Bxg2 {[%emt 0:00:30]} 17. Kxg2 {[%emt 0:00:30]} b5 {[%emt 0:00:30]} 18. Qe2 {[%emt 0:00:30]} Qe6 {[%emt 0:00:30]} 19. cxb5 {[%emt 0:00:30]} axb5 {[%emt 0:00:30]} 20. Nd3 {[%emt 0:00:30]} b4 {[%emt 0:00:30]} 21. Qf3 {[%emt 0:00:30]} Ne5 {[%emt 0:00:30]} 22. Nxe5 {[%emt 0:00:30]} Qxe5 {[%emt 0:00:30]} 23. cxb4 {[%emt 0:00:30]} Rxb4 {[%emt 0:00:30]} 24. Rab1 {[%emt 0:00:30]} Rfb8 {[%emt 0:00:30]} 25. Rd2 {[%emt 0:00:30]} R4b7 {[%emt 0:00:30]} 26. Rc1 {[%emt 0:00:30]} Ra7 {[%emt 0:00:30]} 27. Rc4 {[%emt 0:00:30]} Rba8 {[%emt 0:00:30]} 28. Qe2 {[%emt 0:00:30]} Qe6 {[%emt 0:00:30]} 29. e4 {[%emt 0:00:30]} Qe5 {[%emt 0:00:30]} 30. Rcc2 {[%emt 0:00:30]} Ra6 {[%emt 0:00:30]} 31. f4 {[%emt 0:00:30]} Qe6 {[%emt 0:00:30]} 32. Kh2 {[%emt 0:00:30]} Ra5 {[%emt 0:00:30]} 33. Kg2 {[%emt 0:00:30]} Rb8 {[%emt 0:00:30]} 34. Rc4 {[%emt 0:00:30]} Rab5 {[%emt 0:00:30]} 35. Rdc2 {[%emt 0:00:30]} Qd7 {[%emt 0:00:30]} 36. Ra4 {[%emt 0:00:30]} e6 {[%emt 0:00:30]} 37. Rd2 {[%emt 0:00:30]} d5 {[%emt 0:00:30]} 38. exd5 {[%emt 0:00:30]} exd5 {[%emt 0:00:30]} 39. Re4 {[%emt 0:00:30]} Qc6 {[%emt 0:00:30]} 40. Re5 {[%emt 0:00:30]} c4 {[%emt 0:00:30]} 41. Qf3 {[%emt 0:00:30]} cxb3 {[%emt 0:00:30]} 42. axb3 {[%emt 0:00:30]} Rxb3 {[%emt 0:00:30]} 43. Qxd5 {[%emt 0:00:30]} Qc3 {[%emt 0:00:30]} 44. Rg5 {[%emt 0:00:30]} Rb2 {[%emt 0:00:30]} 0-1